fUSD/lending_fUSD_20240327
["ID","MTS","AMOUNT","RATE_DAILY","PERIOD"]
[320703179,1711521047393,-500.0,0.00054794,120]
[320703180,1711521047401,-505.512199,0.00054794,120]
[320703181,1711521047410,-542.10370517,0.00054794,120]
[320703182,1711521047420,-503.00915858,0.00054794,120]
[320703183,1711521047429,-548.89,0.00054794,120]
[320703184,1711521047438,-669.42,0.00054794,120]
[320703185,1711521047447,-500.0,0.00054794,120]
[320703186,1711521047457,-508.59,0.00054794,120]
[320703187,1711521047466,-500.0,0.00054794,120]
[320703188,1711521047475,-152.714497,0.00054794,7]
[320703189,1711521047486,-526.1293916,0.00054794,120]
[320703190,1711521047495,-1162.55,0.00054794,120]
[320703191,1711521047506,-2291.77,0.00054794,120]
[320703192,1711521047515,-500.0,0.00054794,120]
[320703193,1711521047526,-500.0,0.00054794,120]
[320703194,1711521047535,-549.54,0.00054794,120]
[320703195,1711521047545,-1366.31,0.00054794,120]
[320703196,1711521047554,-532.52,0.00054794,120]
[320703197,1711521047563,-500.0,0.00054794,120]
[320703198,1711521047573,-595.44,0.00054794,120]
[320703199,1711521047582,-7047.69,0.00054794,120]
[320703200,1711521047592,-503.13348214,0.00054794,60]
[320703201,1711521047601,-502.56,0.00054794,120]
[320703202,1711521047611,-518.78811732,0.00054794,120]
[320703203,1711521047704,-210.35707632,0.00054794,120]
[320703204,1711521047714,-500.0,0.00054794,120]
[320703205,1711521047725,-500.0,0.00054794,120]
[320703206,1711521047736,-1081.84,0.00054794,120]
[320703207,1711521047745,-1000.0,0.00054794,120]
[320703208,1711521047754,-500.0,0.00054794,120]
[320703209,1711521047763,-822.65,0.00054794,120]
[320703210,1711521047772,-491.324185,0.00054794,30]
[320703211,1711521047781,-491.324185,0.00054794,30]
[320703212,1711521047790,-970.5,0.00054794,120]
[320703213,1711521048006,-500.0,0.00054794,120]
[320703214,1711521048016,-1171.65,0.00054794,120]
[320703215,1711521048027,-491.324185,0.00054794,30]
[320703216,1711521048037,-2222.27,0.00054794,120]
[320703217,1711521048046,-491.324185,0.00054794,30]
[320703218,1711521048055,-585.09492114,0.00054794,120]
[320703219,1711521048064,-1237.02,0.00054794,120]
[320703220,1711521048075,-500.0,0.00054794,120]
[320703221,1711521048086,-668.08,0.00054794,120]
[320703222,1711521048095,-608.98,0.00054794,120]
[320703223,1711521048106,-1242.46,0.00054794,120]
[320703224,1711521048116,-510.40316236,0.00054794,120]
[320703225,1711521048126,-1294.32,0.00054794,120]
[320703226,1711521048135,-500.0,0.00054794,120]
[320703227,1711521048145,-535.17,0.00054794,120]
[320703228,1711521048154,-500.0,0.00054794,120]
[320703229,1711521048163,-500.0,0.00054794,120]
[320703230,1711521048172,-500.0,0.00054794,120]
[320703231,1711521048182,-500.0,0.00054794,120]
[320703232,1711521048191,-151.0,0.00054794,120]
[320703233,1711521048201,-717.03,0.00054794,120]
[320703234,1711521048210,-151.0,0.00054794,120]
[320703235,1711521048219,-500.0,0.00054794,120]
[320703236,1711521048230,-603.075319,0.00054794,120]
[320703237,1711521048240,-603.075319,0.00054794,120]
[320703238,1711521048250,-1040.25,0.00054794,120]
[320703239,1711521048260,-500.0,0.00054794,120]
[320703240,1711521048271,-500.0,0.00054794,120]
[320703241,1711521048280,-500.0,0.00054794,120]
[320703242,1711521048289,-500.0,0.00054794,120]
[320703243,1711521048299,-500.0,0.00054794,120]
[320703244,1711521048308,-500.0,0.00054794,120]
[320703245,1711521048317,-500.0,0.00054794,120]
[320703246,1711521048326,-500.0,0.00054794,120]
[320703247,1711521048335,-500.0,0.00054794,120]
[320703248,1711521048344,-500.0,0.00054794,120]
[320703249,1711521048353,-603.075319,0.00054794,120]
[320703250,1711521048363,-423.4,0.00054794,120]
[320703251,1711521048372,-603.075319,0.00054794,120]
[320703252,1711521048381,-500.0,0.00054794,120]
[320703253,1711521048390,-500.0,0.00054794,120]
[320703254,1711521048399,-500.0,0.00054794,120]
[320703255,1711521048408,-935.57,0.00054794,120]
[320703256,1711521048418,-500.0,0.00054794,120]
[320703257,1711521048427,-878.86,0.00054794,120]
[320703258,1711521048436,-516.12787952,0.00054794,120]
[320703259,1711521048445,-500.0,0.00054794,120]
[320703260,1711521048454,-500.0,0.00054794,120]
[320703261,1711521048463,-528.22,0.00054794,120]
[320703262,1711521048473,-500.0,0.00054794,120]
[320703263,1711521048483,-500.0,0.00054794,120]
[320703264,1711521048492,-513.24818876,0.00054794,120]
[320703265,1711521048502,-876.06,0.00054794,120]
[320703266,1711521048518,-637.29,0.00054794,120]
[320703267,1711521048537,-1392.245663,0.00054794,120]
[320703268,1711521048553,-1392.245663,0.00054794,120]
[320703269,1711521048573,-999.87,0.00054794,120]
[320703270,1711521048589,-512.43477721,0.00054794,120]
[320703271,1711521048607,-800.78,0.00054794,120]
[320703272,1711521048625,-500.0,0.00054794,120]
[320703273,1711521048643,-1392.245663,0.00054794,120]
[320703274,1711521048663,-500.0,0.00054794,120]
[320703275,1711521048680,-1392.245663,0.00054794,120]
[320703276,1711521048701,-317.61718621,0.00054794,120]
[320703277,1711521048718,-500.0,0.00054794,120]
[320703278,1711521048732,-151.0,0.00054794,120]
[320703279,1711521048748,-500.0,0.00054794,120]
[320703280,1711521048764,-151.0,0.00054794,120]
[320703281,1711521048778,-151.0,0.00054794,120]
[320703282,1711521048794,-500.0,0.00054794,120]
[320703283,1711521048813,-500.0,0.00054794,120]
[320703284,1711521048828,-553.13,0.00054794,120]
[320703285,1711521048842,-500.0,0.00054794,120]
[320703286,1711521048856,-574.19,0.00054794,120]
[320703287,1711521048871,-823.98,0.00054794,120]
[320703288,1711521048888,-500.0,0.00054794,120]
[320703289,1711521048902,-506.73207416,0.00054794,120]
[320703290,1711521048917,-513.53396653,0.00054794,120]
[320703291,1711521048932,-661.93,0.00054794,120]
[320703292,1711521048948,-500.0,0.00054794,120]
[320703293,1711521048961,-500.0,0.00054794,120]
[320703294,1711521048978,-1089.49,0.00054794,120]
[320703295,1711521048992,-332.60900955,0.00054794,120]
[320703296,1711521049006,-511.62360046,0.00054794,120]
[320703297,1711521049021,-500.0,0.00054794,120]
[320703298,1711521049036,-827.87,0.00054794,120]
[320703299,1711521049051,-1454.5,0.00054794,120]
[320703300,1711521049066,-500.0,0.00054794,120]
[320703301,1711521049080,-500.0,0.00054794,120]
[320703302,1711521049096,-613.51475155,0.00054794,120]
[320703303,1711521049111,-500.0,0.00054794,120]
[320703304,1711521049127,-500.0,0.00054794,120]
[320703305,1711521049141,-500.0,0.00054794,120]
[320703306,1711521049156,-500.0,0.00054794,120]
[320703307,1711521049171,-500.0,0.00054794,120]
[320703308,1711521049186,-500.0,0.00054794,120]
[320703309,1711521049202,-500.0,0.00054794,120]
[320703310,1711521049217,-500.0,0.00054794,120]
[320703311,1711521049232,-584.66122252,0.00054794,120]
[320703312,1711521049247,-517.3403799,0.00054794,120]
[320703313,1711521049263,-500.0,0.00054794,120]
[320703314,1711521049278,-151.0,0.00054794,120]
[320703315,1711521049293,-151.0,0.00054794,120]
[320703316,1711521049309,-151.0,0.00054794,120]
[320703317,1711521049324,-500.0,0.00054794,120]
[320703318,1711521049340,-500.0,0.00054794,120]
[320703319,1711521049355,-500.0,0.00054794,120]
[320703320,1711521049371,-151.0,0.00054794,120]
[320703321,1711521049385,-151.0,0.00054794,120]
[320703322,1711521049400,-201.505912,0.00054794,120]
[320703323,1711521049414,-151.0,0.00054794,120]
[320703324,1711521049430,-201.505912,0.00054794,120]
[320703325,1711521049445,-201.505912,0.00054794,120]
[320703326,1711521049460,-1000.42,0.00054794,120]
[320703327,1711521049593,-201.505912,0.00054794,120]
[320703328,1711521049607,-201.505912,0.00054794,120]
[320703329,1711521049617,-1629.52,0.00054794,120]
[320703330,1711521049627,-201.505912,0.00054794,120]
[320703331,1711521049637,-500.0,0.00054794,120]
[320703332,1711521049647,-518.3866882,0.00054794,120]
[320703333,1711521049656,-500.0,0.00054794,120]
[320703334,1711521049666,-500.0,0.00054794,120]
[320703335,1711521049675,-649.78,0.00054794,120]
[320703336,1711521049684,-1484.09,0.00054794,120]
[320703337,1711521049694,-151.0,0.00054794,120]
[320703338,1711521049703,-500.0,0.00054794,120]
[320703339,1711521049712,-151.0,0.00054794,120]
[320703340,1711521049721,-151.0,0.00054794,120]
[320703341,1711521049731,-646.09914913,0.00054794,120]
[320703342,1711521049742,-926.8,0.00054794,120]
[320703343,1711521049752,-500.0,0.00054794,120]
[320703344,1711521049762,-500.0,0.00054794,120]
[320703345,1711521049771,-500.0,0.00054794,120]
[320703346,1711521049781,-162.304507,0.00054794,120]
[320703347,1711521049791,-823.71,0.00054794,120]
[320703348,1711521049803,-967.31,0.00054794,120]
[320703349,1711521049814,-698.22,0.00054794,120]
[320703350,1711521049825,-500.0,0.00054794,120]
[320703351,1711521049835,-935.15,0.00054794,120]
[320703352,1711521049847,-151.0,0.00054794,120]
[320703353,1711521049856,-151.0,0.00054794,120]
[320703354,1711521049865,-500.0,0.00054794,120]
[320703355,1711521049875,-500.0,0.00054794,120]
[320703356,1711521049885,-500.0,0.00054794,120]
[320703357,1711521049894,-500.0,0.00054794,120]
[320703358,1711521049903,-886.98,0.00054794,120]
[320703359,1711521049912,-1063.66,0.00054794,120]
[320703360,1711521049922,-500.0,0.00054794,120]
[320703361,1711521049931,-564.03,0.00054794,120]
[320703362,1711521049940,-202.7546291,0.00054794,120]
[320703363,1711521049949,-506.9037272,0.00054794,120]
[320703364,1711521049958,-660.04,0.00054794,30]
[320703365,1711521049967,-449.895944,0.00054794,120]
[320703366,1711521049976,-449.895944,0.00054794,120]
[320703367,1711521049986,-500.0,0.00054794,120]
[320703368,1711521049996,-500.0,0.00054794,120]
[320703369,1711521050006,-512.91807151,0.00054794,120]
[320703370,1711521050016,-449.895944,0.00054794,120]
[320703371,1711521050025,-502.84282416,0.00054794,120]
[320703372,1711521050035,-449.895944,0.00054794,120]
[320703373,1711521050044,-735.21,0.00054794,120]
[320703374,1711521050053,-500.0,0.00054794,120]
[320703375,1711521050062,-218.726235,0.00054794,120]
[320703376,1711521050071,-218.726235,0.00054794,120]
[320703377,1711521050080,-510.87300071,0.00054794,120]
[320703378,1711521050090,-500.0,0.00054794,120]
[320703379,1711521050098,-711.59,0.00054794,120]
[320703380,1711521050107,-500.0,0.00054794,120]
[320703381,1711521050116,-218.726235,0.00054794,120]
[320703382,1711521050125,-218.726235,0.00054794,120]
[320703383,1711521050135,-500.0,0.00054794,120]
[320703384,1711521050144,-2593.77,0.00054794,120]
[320703385,1711521050153,-500.0,0.00054794,120]
[320703386,1711521050163,-810.4,0.00054794,120]
[320703387,1711521050172,-1200.620511,0.00054794,120]
[320703388,1711521050182,-540.245892,0.00054794,120]
[320703389,1711521050191,-1200.620511,0.00054794,120]
[320703390,1711521050201,-540.245892,0.00054794,120]
[320703391,1711521050213,-764.98,0.00054794,120]
[320703392,1711521050223,-500.0,0.00054794,120]
[320703393,1711521050233,-500.0,0.00054794,120]
[320703394,1711521050243,-1200.620511,0.00054794,120]
[320703395,1711521050252,-540.245892,0.00054794,120]
[320703396,1711521050261,-1200.620511,0.00054794,120]
[320703397,1711521050271,-500.0,0.00054794,120]
[320703398,1711521050280,-540.245892,0.00054794,120]
[320703399,1711521050289,-500.0,0.00054794,120]
[320703400,1711521050299,-500.0,0.00054794,120]
[320703401,1711521050309,-500.0,0.00054794,120]
[320703402,1711521050320,-151.0,0.00054794,120]
[320703403,1711521050329,-500.0,0.00054794,120]
[320703404,1711521050339,-151.0,0.00054794,120]
[320703405,1711521050348,-706.7,0.00054794,120]
[320703406,1711521050358,-151.0,0.00054794,7]
[320703407,1711521050367,-530.09,0.00054794,120]
[320703408,1711521050376,-151.0,0.00054794,7]
[320703409,1711521050385,-885.31,0.00054794,120]
[320703410,1711521050395,-500.0,0.00054794,120]
[320703411,1711521050405,-500.0,0.00054794,120]
[320703412,1711521050414,-500.0,0.00054794,120]
[320703413,1711521050424,-523.683972,0.00054794,120]
[320703414,1711521050433,-523.683972,0.00054794,120]
[320703415,1711521050442,-500.58,0.00054794,120]
[320703416,1711521050451,-534.03552622,0.00054794,120]
[320703417,1711521050461,-500.0,0.00054794,120]
[320703418,1711521050470,-523.683972,0.00054794,120]
[320703419,1711521050479,-523.683972,0.00054794,120]
[320703420,1711521050488,-785.51,0.00054794,120]
[320703421,1711521050498,-745.76,0.00054794,120]
[320703422,1711521050508,-416.48343056,0.00054794,120]
[320703423,1711521050517,-1521.44,0.00054794,120]
[320703424,1711521050526,-500.0,0.00054794,120]
[320703425,1711521050535,-588.23,0.00054794,120]
[320703426,1711521050544,-628.98,0.00054794,120]
[320703427,1711521050554,-647.79,0.00054794,120]
[320703428,1711521050563,-529.19440628,0.00054794,120]
[320703429,1711521050573,-500.0,0.00054794,120]
[320703430,1711521050582,-500.0,0.00054794,120]
[320703431,1711521050591,-510.2191613,0.00054794,120]
[320703432,1711521050601,-151.0,0.00054794,60]
[320703433,1711521050611,-151.0,0.00054794,60]
[320703434,1711521050620,-576.5,0.00054794,120]
[320703435,1711521050630,-500.0,0.00054794,120]
[320703436,1711521050639,-500.0,0.00054794,120]
[320703437,1711521050648,-151.0,0.00054794,60]
[320703438,1711521050658,-151.0,0.00054794,60]
[320703439,1711521050668,-500.0,0.00054794,120]
[320703440,1711521050677,-500.0,0.00054794,120]
[320703441,1711521050686,-500.0,0.00054794,120]
[320703442,1711521050696,-500.0,0.00054794,120]
[320703443,1711521050705,-500.0,0.00054794,120]
[320703444,1711521050714,-962.85,0.00054794,120]
[320703445,1711521050723,-500.0,0.00054794,120]
[320703446,1711521050733,-500.0,0.00054794,120]
[320703447,1711521050742,-500.0,0.00054794,120]
[320703448,1711521050751,-910.98,0.00054794,120]
[320703449,1711521050761,-500.0,0.00054794,120]
[320703450,1711521050770,-515.80195321,0.00054794,120]
[320703451,1711521050780,-1358.55,0.00054794,120]
[320703452,1711521050789,-516.62434846,0.00054794,120]
[320703453,1711521050799,-151.0,0.00054794,120]
[320703454,1711521050810,-262.42136,0.00054794,120]
[320703455,1711521050819,-1237.35,0.00054794,120]
[320703456,1711521050828,-500.0,0.00054794,120]
[320703457,1711521050838,-500.0,0.00054794,120]
[320703458,1711521050847,-500.0,0.00054794,120]
[320703459,1711521050856,-511.14837168,0.00054794,120]
[320703460,1711521050866,-500.0,0.00054794,7]
[320703461,1711521050875,-511.99571965,0.00054794,120]
[320703462,1711521050887,-752.08,0.00054794,120]
[320703463,1711521050897,-839.66,0.00054794,120]
[320703464,1711521050908,-500.0,0.00054794,120]
[320703465,1711521050918,-500.0,0.00054794,120]
[320703466,1711521050927,-1383.35,0.00054794,120]
[320703467,1711521050937,-499.57134554,0.00054794,120]
[320703468,1711521050946,-517.71934684,0.00054794,120]
[320703469,1711521050956,-1642.74,0.00054794,120]
[320703470,1711521050965,-776.16,0.00054794,120]
[320703471,1711521050974,-596.95219667,0.00054794,120]
[320703472,1711521050985,-515.1488356,0.00054794,120]
[320703473,1711521050994,-500.0,0.00054794,120]
[320703474,1711521051004,-513.65069676,0.00054794,120]
[320703475,1711521051013,-501.61397127,0.00054794,120]
[320703476,1711521051023,-610.62,0.00054794,120]
[320703477,1711521051032,-511.12251,0.00054794,120]
[320703478,1711521051041,-500.0,0.00054794,120]
[320703479,1711521051050,-500.0,0.00054794,120]
[320703480,1711521051059,-515.23902599,0.00054794,120]
[320703481,1711521051069,-517.98,0.00054794,120]
[320703482,1711521051078,-156.77025,0.00054794,120]
[320703483,1711521051087,-500.0,0.00054794,120]
[320703484,1711521051097,-500.0,0.00054794,120]
[320703485,1711521051107,-151.0,0.00054794,120]
[320703486,1711521051116,-153.061295,0.00054794,120]
[320703487,1711521051125,-577.28,0.00054794,120]
[320703488,1711521051135,-153.588542,0.00054794,120]
[320703489,1711521051145,-639.3,0.00054794,120]
[320703490,1711521051154,-611.8,0.00054794,120]
[320703491,1711521051164,-510.04,0.00054794,120]
[320703492,1711521051173,-500.0,0.00054794,120]
[320703493,1711521051183,-500.0,0.00054794,120]
[320703494,1711521051192,-648.31,0.00054794,120]
[320703495,1711521051203,-262.85771439,0.00054794,120]
[320703496,1711521051212,-514.81281052,0.00054794,120]
[320703497,1711521051222,-720.11,0.00054794,120]
[320703498,1711521051232,-898.75,0.00054794,120]
[320703499,1711521051241,-581.72,0.00054794,120]
[320703500,1711521051250,-500.0,0.00054794,120]
[320703501,1711521051260,-500.0,0.00054794,120]
[320703502,1711521051269,-500.0,0.00054794,120]
[320703503,1711521051278,-500.0,0.00054794,120]
[320703504,1711521051287,-966.82,0.00054794,120]
[320703505,1711521051297,-500.0,0.00054794,120]
[320703506,1711521051306,-500.0,0.00054794,120]
[320703507,1711521051315,-511.0248823,0.00054794,120]
[320703508,1711521051324,-500.0,0.00054794,120]
[320703509,1711521051335,-1026.67,0.00054794,120]
[320703510,1711521051344,-500.0,0.00054794,120]
[320703511,1711521051353,-177.051292,0.00054794,120]
[320703512,1711521051363,-177.051292,0.00054794,120]
[320703513,1711521051373,-158.23368279,0.00054794,120]
[320703514,1711521051382,-500.0,0.00054794,120]
[320703515,1711521051391,-500.0,0.00054794,120]
[320703516,1711521051402,-177.051292,0.00054794,120]
[320703517,1711521051411,-177.051292,0.00054794,120]
[320703518,1711521051420,-511.89091917,0.00054794,120]
[320703519,1711521051431,-1026.185319,0.00054794,120]
[320703520,1711521051441,-500.0,0.00054794,120]
[320703521,1711521051451,-1026.185319,0.00054794,120]
[320703522,1711521051461,-500.0,0.00054794,120]
[320703523,1711521051471,-500.0,0.00054794,120]
[320703524,1711521051480,-1026.185319,0.00054794,120]
[320703525,1711521051489,-1026.185319,0.00054794,120]
[320703526,1711521051499,-500.0,0.00054794,120]
[320703527,1711521051508,-500.0,0.00054794,120]
[320703528,1711521051518,-500.0,0.00054794,120]
[320703529,1711521051527,-240.53095,0.00054794,120]
[320703530,1711521051537,-240.53095,0.00054794,120]
[320703531,1711521051546,-1189.93,0.00054794,120]
[320703532,1711521051555,-240.53095,0.00054794,120]
[320703533,1711521051565,-240.53095,0.00054794,120]
[320703534,1711521051574,-533.13,0.00054794,120]
[320703535,1711521051584,-505.44180443,0.00054794,120]
[320703536,1711521051593,-500.0,0.00054794,120]
[320703537,1711521051602,-500.0,0.00054794,120]
[320703538,1711521051611,-505.723978,0.00054794,120]
[320703539,1711521051620,-519.66914732,0.00054794,120]
[320703540,1711521051629,-500.0,0.00054794,120]
[320703541,1711521051639,-546.39,0.00054794,120]
[320703542,1711521051647,-512.62205961,0.00054794,120]
[320703543,1711521051657,-160.83275408,0.00054794,120]
[320703544,1711521051666,-227.980814,0.00054794,120]
[320703545,1711521051675,-227.980814,0.00054794,120]
[320703546,1711521051684,-500.0,0.00054794,120]
[320703547,1711521051694,-819.27,0.00054794,120]
[320703548,1711521051703,-1374.56,0.00054794,120]
[320703549,1711521051712,-500.0,0.00054794,120]
[320703550,1711521051721,-227.980814,0.00054794,120]
[320703551,1711521051732,-1559.12,0.00054794,120]
[320703552,1711521051742,-227.980814,0.00054794,120]
[320703553,1711521051752,-151.0,0.00054794,120]
[320703554,1711521051762,-151.0,0.00054794,120]
[320703555,1711521051771,-527.92543312,0.00054794,120]
[320703556,1711521051780,-768.93,0.00054794,120]
[320703557,1711521051790,-918.12,0.00054794,120]
[320703558,1711521051801,-603.07090202,0.00054794,120]
[320703559,1711521051813,-504.27832786,0.00054794,120]
[320703560,1711521051921,-2296.54,0.00054794,120]
[320703561,1711521051942,-514.39668033,0.00054794,120]
[320703562,1711521051952,-511.98350614,0.00054794,120]
[320703563,1711521051962,-503.15844507,0.00054794,120]
[320703564,1711521051973,-151.0,0.00054794,120]
[320703565,1711521051985,-155.455411,0.00054794,120]
[320703566,1711521051995,-507.00075324,0.00054794,120]
[320703567,1711521052004,-153.205536,0.00054794,120]
[320703568,1711521052014,-500.0,0.00054794,120]
[320703569,1711521052023,-3040.45,0.00054794,120]
[320703570,1711521052032,-500.0,0.00054794,120]
[320703571,1711521052041,-466.5556635,0.00054794,120]
[320703572,1711521052051,-382.47782305,0.00054794,120]
[320703573,1711521052060,-500.0,0.00054794,120]
[320703574,1711521052069,-1719.78,0.00054794,120]
[320703575,1711521052079,-550.92,0.00054794,120]
[320703576,1711521052088,-750.43,0.00054794,120]
[320703577,1711521052097,-500.0,0.00054794,120]
[320703578,1711521052106,-441.352056,0.00054794,120]
[320703579,1711521052115,-441.352056,0.00054794,120]
[320703580,1711521052124,-351.74949912,0.00054794,120]
[320703581,1711521052133,-441.352056,0.00054794,120]
[320703582,1711521052143,-441.352056,0.00054794,120]
[320703583,1711521052152,-151.0,0.00054794,120]
[320703584,1711521052161,-520.82,0.00054794,120]
[320703585,1711521052170,-151.0,0.00054794,120]
[320703586,1711521052179,-155.167412,0.00054794,120]
[320703587,1711521052188,-1545.96,0.00054794,120]
[320703588,1711521052198,-512.16743347,0.00054794,120]
[320703589,1711521052207,-500.0,0.00054794,120]
[320703590,1711521052217,-151.0,0.00054794,120]
[320703591,1711521052226,-500.0,0.00054794,120]
[320703592,1711521052236,-517.13480582,0.00054794,120]
[320703593,1711521052245,-521.24613784,0.00054794,120]
[320703594,1711521052254,-151.0,0.00054794,120]
[320703595,1711521052263,-931.8,0.00054794,120]
[320703596,1711521052273,-10185.17,0.00054794,120]
[320703597,1711521052282,-626.3712163,0.00054794,120]
[320703598,1711521052290,-940.74,0.00054794,120]
[320703599,1711521052300,-1071.27,0.00054794,120]
[320703600,1711521052309,-990.98,0.00054794,120]
[320703601,1711521052318,-490.39318654,0.00054794,120]
[320703602,1711521052328,-185.850586,0.00054794,120]
[320703603,1711521052337,-185.850586,0.00054794,120]
[320703604,1711521052346,-514.50622581,0.00054794,120]
[320703605,1711521052356,-182.728196,0.00054794,120]
[320703606,1711521052365,-5619.72,0.00054794,120]
[320703607,1711521052374,-182.728196,0.00054794,120]
[320703608,1711521052383,-185.850586,0.00054794,120]
[320703609,1711521052392,-503.65823936,0.00054794,120]
[320703610,1711521052402,-500.0,0.00054794,120]
[320703611,1711521052411,-185.850586,0.00054794,120]
[320703612,1711521052422,-182.728196,0.00054794,120]
[320703613,1711521052431,-529.6960929,0.00054794,120]
[320703614,1711521052442,-182.728196,0.00054794,120]
[320703615,1711521052452,-7137.91,0.00054794,120]
[320703616,1711521052461,-1599.33,0.00054794,120]
[320703617,1711521052470,-500.0,0.00054794,120]
[320703618,1711521052481,-547.16,0.00054794,120]
[320703619,1711521052491,-500.0,0.00054794,120]
[320703620,1711521052501,-500.0,0.00054794,120]
[320703621,1711521052510,-500.0,0.00054794,120]
[320703622,1711521052519,-100860.25,0.00054794,120]
[320703623,1711521052530,-500.0,0.00054794,120]
[320703624,1711521052539,-151.0,0.00054794,120]
[320703625,1711521052549,-152.161881,0.00054794,120]
[320703626,1711521052560,-500.0,0.00054794,15]
[320703627,1711521052570,-18551.05,0.00054794,120]
[320703628,1711521052579,-1023.17,0.00054794,120]
[320703629,1711521052589,-1117.04,0.00054794,120]
[320703630,1711521052599,-500.0,0.00054794,120]
[320703631,1711521052608,-500.0,0.00054794,120]
[320703632,1711521052617,-501.90810305,0.00054794,120]
[320703633,1711521052627,-521.12145557,0.00054794,120]
[320703634,1711521052636,-500.0,0.00054794,120]
[320703635,1711521052645,-5584.94,0.00054794,120]
[320703636,1711521052654,-500.0,0.00054794,120]
[320703637,1711521052664,-202.17885754,0.00054794,120]
[320703638,1711521052673,-2428.33,0.00054794,120]
[320703639,1711521052683,-507.82,0.00054794,120]
[320703640,1711521052692,-500.0,0.00054794,120]
[320703641,1711521052702,-535.36686935,0.00054794,120]
[320703642,1711521052711,-1854.59,0.00054794,120]
[320703643,1711521052720,-500.0,0.00054794,120]
[320703644,1711521052730,-1970.07,0.00054794,120]
[320703645,1711521052739,-500.0,0.00054794,120]
[320703646,1711521052749,-625.84,0.00054794,120]
[320703647,1711521052759,-614.74,0.00054794,120]
[320703648,1711521052768,-500.0,0.00054794,120]
[320703649,1711521052778,-1450.91641262,0.00054794,120]
[320703650,1711521053140,-271.87358738,0.00054794,120]
[320703651,1711521053149,-500.0,0.00054794,120]
[320703652,1711521053159,-500.0,0.00054794,120]
[320703653,1711521053168,-500.0,0.00054794,120]
[320703654,1711521053178,-518.38648113,0.00054794,120]
[320703655,1711521053187,-1489.51,0.00054794,120]
[320703656,1711521053196,-151.0,0.00054794,120]
[320703657,1711521053206,-151.0,0.00054794,120]
[320703658,1711521053215,-500.0,0.00054794,120]
[320703659,1711521053225,-500.0,0.00054794,120]
[320703660,1711521053235,-151.0,0.00054794,120]
[320703661,1711521053245,-1819.69,0.00054794,120]
[320703662,1711521053254,-26680.58,0.00054794,120]
[320703663,1711521053263,-685.87,0.00054794,120]
[320703664,1711521053273,-2871.78,0.00054794,120]
[320703665,1711521053282,-685.87,0.00054794,120]
[320703666,1711521053291,-685.87,0.00054794,120]
[320703667,1711521053301,-151.0,0.00054794,120]
[320703668,1711521053311,-500.0,0.00054794,120]
[320703669,1711521053320,-685.87,0.00054794,120]
[320703670,1711521053329,-151.0,0.00054794,120]
[320703671,1711521053338,-500.0,0.00054794,120]
[320703672,1711521053347,-151.0,0.00054794,120]
[320703673,1711521053357,-685.87,0.00054794,120]
[320703674,1711521053366,-685.87,0.00054794,120]
[320703675,1711521053375,-685.87,0.00054794,120]
[320703676,1711521053385,-685.87,0.00054794,120]
[320703677,1711521053394,-685.87,0.00054794,120]
[320703678,1711521053404,-500.0,0.00054794,120]